[Event "XXXIX Benasque Open 2019"]
[Site "Benasque"]
[Date "2019.07.12"]
[Round "9.9"]
[White "Martinez Alcantara, Jose Eduardo"]
[Black "Campora, Daniel H."]
[Result "1-0"]
[ECO "C65"]
[WhiteElo "2601"]
[BlackElo "2420"]
[Annotator "ChessBase"]
[PlyCount "155"]
[EventDate "2019.07.04"]
[EventType "swiss"]
[EventCountry "ESP"]
[SourceTitle "playchess.com"]
[Source "ChessBase"]
[SourceQuality "1"]
[TimeControl "5400+30"]

1. e4 {[%emt 0:00:00]} e5 {[%emt 0:00:04]} 2. Nf3 {[%emt 0:00:08]} Nc6 {[%emt 0:00:04]} 3. Bb5 {[%emt 0:00:04]} Nf6 {[%emt 0:00:24]} 4. d3 {[%emt 0:00:04]} d6 {[%emt 0:00:40]} 5. O-O {[%emt 0:00:56]} Be7 {[%emt 0:01:13]} 6. c3 {[%emt 0:02:48]} O-O {[%emt 0:00:48]} 7. Nbd2 {[%emt 0:00:33]} Nb8 {[%emt 0:04:58]} 8. d4 {[%emt 0:00:46]} Nbd7 {[%emt 0:00:42]} 9. Bd3 {[%emt 0:02:26]} Re8 {[%emt 0:02:19]} 10. Re1 {[%emt 0:00:24]} Bf8 {[%emt 0:00:24]} 11. h3 {[%emt 0:01:27]} g6 {[%emt 0:00:12]} 12. Qc2 {[%emt 0:05:30]} Bg7 {[%emt 0:01:34]} 13. a4 {[%emt 0:06:54]} a5 {[%emt 0:01:55]} 14. dxe5 {[%emt 0:06:51]} Nxe5 {[%emt 0:03:17]} 15. Nxe5 {[%emt 0:00:02]} Rxe5 {[%emt 0:06:51]} 16. Nf3 {[%emt 0:00:17]} Re8 {[%emt 0:00:06]} 17. Bf4 {[%emt 0:01:14]} Nd7 {[%emt 0:00:42]} 18. Rad1 {[%emt 0:02:41]} Ne5 {[%emt 0:03:19]} 19. Bxe5 {[%emt 0:06:34]} Bxe5 {[%emt 0:00:49]} 20. Bb5 {[%emt 0:00:00]} c6 {[%emt 0:13:32]} 21. Nxe5 {[%emt 0:03:16]} Rxe5 {[%emt 0:01:22]} 22. Bf1 {[%emt 0:10:07]} Re7 {[%emt 0:08:20]} 23. Qd2 {[%emt 0:05:12]} Be6 {[%emt 0:00:28]} 24. c4 {[%emt 0:01:24]} Rd7 {[%emt 0:00:54]} 25. f4 {[%emt 0:02:57]} Qb6+ {[%emt 0:08:13]} 26. Kh1 {[%emt 0:04:10]} d5 {[%emt 0:01:37]} 27. cxd5 {[%emt 0:02:50]} cxd5 {[%emt 0:00:06]} 28. Bb5 {[%emt 0:00:05]} Rdd8 {[%emt 0:00:05]} 29. e5 {[%emt 0:00:35]} d4 {[%emt 0:02:33]} 30. Qf2 {[%emt 0:00:25]} Rac8 {[%emt 0:08:40]} 31. g4 {[%emt 0:04:26]} Bc4 {[%emt 0:02:30]} 32. f5 {[%emt 0:04:56]} Bxb5 {[%emt 0:06:02]} 33. axb5 {[%emt 0:00:01]} Qxb5 {[%emt 0:02:16]} 34. e6 {[%emt 0:00:11]} Qd5+ {[%emt 0:05:35]} 35. Kg1 {[%emt 0:00:05]} fxe6 {[%emt 0:01:28]} 36. fxg6 {[%emt 0:01:03]} Rc7 {[%emt 0:03:30]} 37. Qf4 {[%emt 0:02:36]} Qd6 {[%emt 0:01:10]} 38. gxh7+ {[%emt 0:02:40]} Rxh7 39. Re5 {[%emt 0:01:07]} Rf7 {[%emt 0:02:15]} 40. Qg5+ {[%emt 0:03:34]} Rg7 {[%emt 0:00:07]} 41. Qf6 {[%emt 0:04:30]} d3 {[%emt 0:00:44]} 42. Rxd3 {[%emt 0:05:48]} Qxd3 {[%emt 0:01:03]} 43. Qxe6+ {[%emt 0:00:03]} Rf7 {[%emt 0:00:20]} 44. Rg5+ {[%emt 0:00:02]} Kf8 {[%emt 0:00:09]} 45. Qh6+ {[%emt 0:00:03]} Ke8 {[%emt 0:00:22]} 46. Re5+ {[%emt 0:00:15]} Re7 {[%emt 0:03:55]} 47. Qh5+ {[%emt 0:00:01]} Kf8 {[%emt 0:00:18]} 48. Rf5+ {[%emt 0:00:50]} Kg8 {[%emt 0:00:16]} 49. Qg6+ {[%emt 0:00:43]} Rg7 {[%emt 0:01:20]} 50. Qe6+ {[%emt 0:00:10]} Kh8 {[%emt 0:00:21]} 51. Rh5+ {[%emt 0:00:07]} Qh7 {[%emt 0:00:13]} 52. Rxh7+ {[%emt 0:00:17]} Kxh7 {[%emt 0:00:06]} 53. Qf5+ {[%emt 0:00:04]} Kh8 {[%emt 0:00:41]} 54. Qxa5 {[%emt 0:00:52]} Rgd7 {[%emt 0:01:09]} 55. Kg2 {[%emt 0:00:09]} Rd5 {[%emt 0:00:31]} 56. Qb6 {[%emt 0:01:23]} R8d7 {[%emt 0:00:09]} 57. Qh6+ {[%emt 0:01:26]} Kg8 {[%emt 0:00:06]} 58. Qg6+ {[%emt 0:00:03]} Kh8 {[%emt 0:00:25]} 59. h4 {[%emt 0:01:22]} R5d6 {[%emt 0:00:28]} 60. Qe8+ {[%emt 0:00:29]} Kg7 {[%emt 0:00:05]} 61. Qe5+ {[%emt 0:00:04]} Kf7 {[%emt 0:01:36]} 62. h5 {[%emt 0:00:40]} Rd3 {[%emt 0:01:55]} 63. Qf5+ {[%emt 0:00:05]} Kg7 {[%emt 0:00:12]} 64. Qg6+ {[%emt 0:00:31]} Kh8 {[%emt 0:00:02]} 65. g5 {[%emt 0:02:39]} R3d6 {[%emt 0:01:47]} 66. Qe8+ {[%emt 0:00:07]} Kg7 {[%emt 0:00:32]} 67. Qe5+ {[%emt 0:00:29]} Kh7 {[%emt 0:00:43]} 68. Qf5+ {[%emt 0:00:12]} Kg8 {[%emt 0:00:15]} 69. Qc5 {[%emt 0:04:31]} Rd5 {[%emt 0:01:04]} 70. Qe3 {[%emt 0:00:57]} Rd2+ {[%emt 0:00:53]} 71. Kf1 {[%emt 0:00:02]} Rf7+ {[%emt 0:00:24]} 72. Kg1 {[%emt 0:01:58]} Rfd7 {[%emt 0:00:22]} 73. Qe8+ {[%emt 0:00:06]} Kh7 {[%emt 0:00:19]} 74. Qg6+ {[%emt 0:00:03]} Kh8 {[%emt 0:00:08]} 75. h6 {[%emt 0:01:33]} b5 {[%emt 0:01:05]} 76. Qf6+ {[%emt 0:00:58]} Kg8 {[%emt 0:00:27]} 77. g6 {[%emt 0:00:45]} Rd1+ {[%emt 0:00:17]} 78. Kf2 1-0

[Event "XXXIX Benasque Open 2019"]
[Site "Benasque"]
[Date "2019.07.12"]
[Round "9.10"]
[White "Rychagov, Andrey"]
[Black "Plazuelo Pascual, Juan"]
[Result "1-0"]
[ECO "A40"]
[WhiteElo "2537"]
[BlackElo "2403"]
[Annotator "ChessBase"]
[PlyCount "91"]
[EventDate "2019.07.04"]
[EventType "swiss"]
[EventCountry "ESP"]
[SourceTitle "playchess.com"]
[Source "ChessBase"]
[SourceQuality "1"]
[TimeControl "5400+30"]

1. d4 {[%emt 0:00:00]} e6 {[%emt 0:00:00]} 2. c4 {[%emt 0:00:00]} b6 {[%emt 0:00:00]} 3. a3 {[%emt 0:04:54]} Bb7 {[%emt 0:00:00]} 4. Nc3 {[%emt 0:00:14]} f5 {[%emt 0:00:00]} 5. Nf3 {[%emt 0:01:16]} Nf6 {[%emt 0:00:06]} 6. e3 {[%emt 0:05:01]} Be7 {[%emt 0:05:18]} 7. Bd3 {[%emt 0:02:50]} O-O {[%emt 0:00:37]} 8. O-O {[%emt 0:02:34]} Ne4 {[%emt 0:05:18]} 9. Ne2 {[%emt 0:05:17]} Bf6 {[%emt 0:13:30]} 10. b4 {[%emt 0:05:17]} d6 {[%emt 0:04:49]} 11. Bb2 {[%emt 0:02:42]} Nd7 {[%emt 0:02:09]} 12. Qc2 {[%emt 0:00:16]} g6 {[%emt 0:13:43]} 13. Nf4 {[%emt 0:12:09]} Re8 {[%emt 0:11:17]} 14. d5 {[%emt 0:04:27]} e5 {[%emt 0:09:40]} 15. Ne6 {[%emt 0:01:48]} Rxe6 {[%emt 0:00:06]} 16. dxe6 {[%emt 0:00:03]} Nf8 {[%emt 0:00:06]} 17. Nd2 {[%emt 0:08:04]} Nxd2 {[%emt 0:00:08]} 18. Qxd2 {[%emt 0:00:03]} Nxe6 {[%emt 0:00:20]} 19. f4 Qe7 {[%emt 0:03:41]} 20. Rad1 {[%emt 0:03:38]} Re8 {[%emt 0:03:35]} 21. fxe5 {[%emt 0:03:21]} Bxe5 {[%emt 0:07:35]} 22. Bxe5 {[%emt 0:02:31]} dxe5 {[%emt 0:00:02]} 23. c5 {[%emt 0:01:06]} Rd8 {[%emt 0:02:55]} 24. Qb2 {[%emt 0:05:04]} Qg5 {[%emt 0:04:15]} 25. Bc4 {[%emt 0:01:19]} Re8 {[%emt 0:00:04]} 26. Kh1 {[%emt 0:06:46]} Kf7 {[%emt 0:03:54]} 27. Rd7+ {[%emt 0:01:11]} Re7 {[%emt 0:00:37]} 28. Rxe7+ {[%emt 0:03:24]} Kxe7 {[%emt 0:00:13]} 29. Qa2 {[%emt 0:00:04]} Nd8 {[%emt 0:00:47]} 30. Qd2 {[%emt 0:00:55]} Qg4 {[%emt 0:01:45]} 31. Bd5 {[%emt 0:00:49]} Bxd5 {[%emt 0:00:18]} 32. Qxd5 {[%emt 0:00:04]} Ne6 {[%emt 0:00:09]} 33. cxb6 {[%emt 0:01:06]} axb6 {[%emt 0:00:28]} 34. Qxe5 {[%emt 0:00:18]} Qc4 {[%emt 0:00:09]} 35. Kg1 {[%emt 0:01:06]} Qb3 {[%emt 0:00:09]} 36. Rc1 {[%emt 0:00:29]} c5 {[%emt 0:00:04]} 37. bxc5 {[%emt 0:00:50]} bxc5 {[%emt 0:01:08]} 38. h3 {[%emt 0:01:07]} c4 {[%emt 0:01:38]} 39. Qc3 {[%emt 0:01:57]} Kd6 {[%emt 0:00:04]} 40. Qd2+ {[%emt 0:01:32]} Ke5 {[%emt 0:01:19]} 41. Rc3 {[%emt 0:00:59]} Qb1+ {[%emt 0:00:06]} 42. Kh2 {[%emt 0:01:45]} Qe4 {[%emt 0:00:04]} 43. Qb2 {[%emt 0:00:49]} Kd5 {[%emt 0:01:02]} 44. Qb8 {[%emt 0:00:46]} h5 {[%emt 0:01:02]} 45. a4 {[%emt 0:00:58]} Ng5 {[%emt 0:02:34]} 46. Qb5+ {[%emt 0:00:57]} 1-0

[Event "XXXIX Benasque Open 2019"]
[Site "Benasque"]
[Date "2019.07.13"]
[Round "10.7"]
[White "Narciso Dublan, Marc"]
[Black "Deac, Bogdan-Daniel"]
[Result "1/2-1/2"]
[ECO "A45"]
[WhiteElo "2489"]
[BlackElo "2621"]
[Annotator "RC"]
[PlyCount "80"]
[EventDate "2019.07.04"]
[EventType "swiss"]
[EventCountry "ESP"]
[SourceTitle "playchess.com"]
[Source "ChessBase"]
[SourceQuality "1"]
[TimeControl "5400+30"]

1. d4 {[%emt 0:00:00]} Nf6 {[%emt 0:00:00]} 2. Bg5 {[%emt 0:00:00]} d5 {[%emt 0:00:00]} 3. e3 {[%emt 0:00:07]} c5 {[%emt 0:00:00]} 4. Bxf6 {[%emt 0:00:39]} gxf6 {[%emt 0:00:02]} 5. dxc5 {[%emt 0:00:50]} e6 {[%emt 0:00:03]} 6. Nf3 {[%emt 0:00:46]} Bxc5 {[%emt 0:00:03]} 7. Be2 {[%emt 0:00:26]} Qb6 {[%emt 0:12:49]} 8. Qc1 {[%emt 0:03:43]} Nc6 {[%emt 0:04:29]} 9. O-O {[%emt 0:00:36]} Bd7 {[%emt 0:08:50]} 10. a3 {[%emt 0:05:23]} Be7 {[%emt 0:04:36]} 11. b4 {[%emt 0:10:46]} a5 {[%emt 0:02:32]} 12. b5 {[%emt 0:00:48]} Ne5 {[%emt 0:00:04]} 13. Nxe5 {[%emt 0:01:13]} fxe5 {[%emt 0:00:03]} 14. c4 {[%emt 0:12:08]} d4 {[%emt 0:00:12]} 15. exd4 {[%emt 0:00:32]} exd4 {[%emt 0:00:08]} 16. Nd2 {[%emt 0:01:29]} Rc8 {[%emt 0:07:47]} 17. Nf3 {[%emt 0:07:27]} Bf6 {[%emt 0:01:58]} 18. Bd3 {[%emt 0:03:43]} h6 {[%emt 0:01:38]} 19. Re1 {[%emt 0:01:29]} Qd6 {[%emt 0:00:54]} 20. Nd2 {[%emt 0:02:59]} Qf4 {[%emt 0:03:58]} 21. Ne4 {[%emt 0:05:20]} Be5 {[%emt 0:00:04]} 22. Qxf4 {[%emt 0:01:58]} Bxf4 {[%emt 0:00:08]} 23. Nf6+ {[%emt 0:03:36]} Kd8 {[%emt 0:00:01]} 24. Re4 {[%emt 0:00:27]} Bg5 {[%emt 0:00:02]} 25. Nxd7 {[%emt 0:02:01]} Kxd7 {[%emt 0:00:03]} 26. Rxd4+ {[%emt 0:00:37]} Ke7 {[%emt 0:11:00]} 27. Rd1 {[%emt 0:00:53]} Bf6 {[%emt 0:00:02]} 28. Rf4 {[%emt 0:08:44]} Rhd8 {[%emt 0:02:45]} 29. Kf1 {[%emt 0:00:11]} a4 {[%emt 0:01:03]} 30. Bc2 {[%emt 0:02:27]} Rxd1+ {[%emt 0:00:17]} 31. Bxd1 {[%emt 0:00:02]} Bb2 {[%emt 0:00:09]} 32. Bxa4 {[%emt 0:01:31]} Bxa3 {[%emt 0:00:08]} 33. Rh4 {[%emt 0:02:26]} Kf8 {[%emt 0:02:13]} 34. Bd1 {[%emt 0:02:02]} b6 {[%emt 0:03:23]} 35. Bf3 {[%emt 0:01:18]} Be7 {[%emt 0:00:25]} 36. Rd4 {[%emt 0:02:34]} Rd8 {[%emt 0:02:05]} 37. Rxd8+ {[%emt 0:01:03]} Bxd8 {[%emt 0:00:02]} 38. Bh5 {[%emt 0:02:16]} Be7 {[%emt 0:00:06]} 39. f4 {[%emt 0:01:25]} f5 {[%emt 0:00:23]} 40. Ke2 {[%emt 0:00:09]} Kg7 {[%emt 0:00:08]} 1/2-1/2